[Event "Titled Tuesday Blitz March 28 Late 2023"]
[White "Sjugirov, Sanan"]
[Black "koncheto"]
[WhiteFideId "4189302"]
[WhiteElo "2569"]
[BlackElo "2480"]
[Result "1/2-1/2"]
[Round "01"]
[TimeControl "180+2"]
[Date "2023.03.28"]
[WhiteClock "0:00:10"]
[BlackClock "0:00:07"]

1. e4 {[%clk 0:02:56]}  c5 {[%clk 0:02:57]} 2. Nf3 {[%clk 0:02:56]}  d6 {[%clk 0:02:57]} 3. Bb5+ {[%clk 0:02:54]}  Nc6 {[%clk 0:02:57]} 4. O-O {[%clk 0:02:53]}  Bd7 {[%clk 0:02:57]} 5. Re1 {[%clk 0:02:52]}  a6 {[%clk 0:02:58]} 6. Bxc6 {[%clk 0:02:50]}  Bxc6 {[%clk 0:02:58]} 7. d4 {[%clk 0:02:51]}  cxd4 {[%clk 0:02:58]} 8. Nxd4 {[%clk 0:02:51]}  Bd7 {[%clk 0:02:56]} 9. c4 {[%clk 0:02:49]}  g6 {[%clk 0:02:56]} 10. Nc3 {[%clk 0:02:48]}  Bg7 {[%clk 0:02:56]} 11. Be3 {[%clk 0:02:47]}  Nf6 {[%clk 0:02:56]} 12. f3 {[%clk 0:02:45]}  Rc8 {[%clk 0:02:53]} 13. Qd3 {[%clk 0:02:42]}  Qc7 {[%clk 0:02:53]} 14. Rac1 {[%clk 0:01:52]}  Qxc4 {[%clk 0:02:29]} 15. Qd2 {[%clk 0:01:52]}  Qc7 {[%clk 0:02:30]} 16. Nd5 {[%clk 0:01:45]}  Qd8 {[%clk 0:02:17]} 17. Nf5 {[%clk 0:00:53]}  Bxf5 {[%clk 0:01:34]} 18. Bb6 {[%clk 0:00:46]}  Rxc1 {[%clk 0:01:04]} 19. Nxf6+ {[%clk 0:00:32]}  Bxf6 {[%clk 0:01:02]} 20. Bxd8 {[%clk 0:00:32]}  Rxe1+ {[%clk 0:00:52]} 21. Qxe1 {[%clk 0:00:31]}  Kxd8 {[%clk 0:00:52]} 22. exf5 {[%clk 0:00:31]}  gxf5 {[%clk 0:00:46]} 23. Qa5+ {[%clk 0:00:31]}  Kc8 {[%clk 0:00:44]} 24. Qxf5+ {[%clk 0:00:31]}  Kb8 {[%clk 0:00:45]} 25. Qh5 {[%clk 0:00:29]}  Bxb2 {[%clk 0:00:38]} 26. Qxf7 {[%clk 0:00:28]}  Bf6 {[%clk 0:00:39]} 27. g4 {[%clk 0:00:28]}  h6 {[%clk 0:00:39]} 28. Kg2 {[%clk 0:00:26]}  Rc8 {[%clk 0:00:39]} 29. Qg6 {[%clk 0:00:26]}  Bg5 {[%clk 0:00:35]} 30. Kg3 {[%clk 0:00:26]}  Rc3 {[%clk 0:00:34]} 31. h4 {[%clk 0:00:25]}  Bf6 {[%clk 0:00:32]} 32. Qxh6 {[%clk 0:00:23]}  Be5+ {[%clk 0:00:32]} 33. Kg2 {[%clk 0:00:20]}  Rc2+ {[%clk 0:00:32]} 34. Kf1 {[%clk 0:00:20]}  Rxa2 {[%clk 0:00:28]} 35. Qf8+ {[%clk 0:00:13]}  Ka7 {[%clk 0:00:28]} 36. g5 {[%clk 0:00:12]}  Rh2 {[%clk 0:00:18]} 37. g6 {[%clk 0:00:11]}  Rxh4 {[%clk 0:00:18]} 38. g7 {[%clk 0:00:10]}  Bxg7 {[%clk 0:00:18]} 39. Qxg7 {[%clk 0:00:11]}  e5 {[%clk 0:00:08]} 40. Qc7 {[%clk 0:00:07]}  Rd4 {[%clk 0:00:08]} 41. Ke2 {[%clk 0:00:07]}  Rd5 {[%clk 0:00:08]} 42. Ke3 {[%clk 0:00:07]}  Rd4 {[%clk 0:00:08]} 43. Kf2 {[%clk 0:00:06]}  Rd2+ {[%clk 0:00:08]} 44. Kg3 {[%clk 0:00:06]}  Rd4 {[%clk 0:00:09]} 45. Kh3 {[%clk 0:00:06]}  Rd2 {[%clk 0:00:08]} 46. Kg4 {[%clk 0:00:06]}  Rd4+ {[%clk 0:00:08]} 47. Kf5 {[%clk 0:00:06]}  Rf4+ {[%clk 0:00:07]} 48. Ke6 {[%clk 0:00:07]}  Rxf3 {[%clk 0:00:08]} 49. Kxd6 {[%clk 0:00:06]}  Rf6+ {[%clk 0:00:03]} 50. Kxe5 {[%clk 0:00:04]}  Rc6 {[%clk 0:00:04]} 51. Qg7 {[%clk 0:00:05]}  Rc8 {[%clk 0:00:03]} 52. Kd6 {[%clk 0:00:04]}  Rc6+ {[%clk 0:00:04]} 53. Kd7 {[%clk 0:00:04]}  Rc4 {[%clk 0:00:04]} 54. Qg1+ {[%clk 0:00:04]}  Ka8 {[%clk 0:00:04]} 55. Qf1 {[%clk 0:00:04]}  Rc6 {[%clk 0:00:03]} 56. Qf2 {[%clk 0:00:04]}  Rc4 {[%clk 0:00:02]} 57. Qe3 {[%clk 0:00:04]}  Rc6 {[%clk 0:00:02]} 58. Qd4 {[%clk 0:00:05]}  Rc1 {[%clk 0:00:01]} 59. Qh8+ {[%clk 0:00:05]}  Ka7 {[%clk 0:00:01]} 60. Qd4+ {[%clk 0:00:05]}  Ka8 {[%clk 0:00:01]} 61. Qe5 {[%clk 0:00:05]}  Rc6 {[%clk 0:00:01]} 62. Kd8 {[%clk 0:00:05]}  Ka7 {[%clk 0:00:02]} 63. Qe3+ {[%clk 0:00:05]}  Ka8 {[%clk 0:00:02]} 64. Kd7 {[%clk 0:00:05]}  a5 {[%clk 0:00:02]} 65. Qe5 {[%clk 0:00:05]}  Ra6 {[%clk 0:00:02]} 66. Qe8+ {[%clk 0:00:04]}  Ka7 {[%clk 0:00:03]} 67. Qe3+ {[%clk 0:00:05]}  Ka8 {[%clk 0:00:03]} 68. Qc3 {[%clk 0:00:05]}  a4 {[%clk 0:00:03]} 69. Qh8+ {[%clk 0:00:05]}  Ka7 {[%clk 0:00:03]} 70. Qd4+ {[%clk 0:00:04]}  Ka8 {[%clk 0:00:03]} 71. Kc7 {[%clk 0:00:05]}  Rc6+ {[%clk 0:00:03]} 72. Kd7 {[%clk 0:00:05]}  Ra6 {[%clk 0:00:04]} 73. Qh8+ {[%clk 0:00:05]}  Ka7 {[%clk 0:00:04]} 74. Qc3 {[%clk 0:00:04]}  a3 {[%clk 0:00:04]} 75. Qc5+ {[%clk 0:00:04]}  Ka8 {[%clk 0:00:04]} 76. Qf8+ {[%clk 0:00:05]}  Ka7 {[%clk 0:00:05]} 77. Qf2+ {[%clk 0:00:05]}  Ka8 {[%clk 0:00:05]} 78. Qa2 {[%clk 0:00:06]}  Ka7 {[%clk 0:00:05]} 79. Kc7 {[%clk 0:00:06]}  Rc6+ {[%clk 0:00:05]} 80. Kd8 {[%clk 0:00:07]}  Ra6 {[%clk 0:00:06]} 81. Ke7 {[%clk 0:00:07]}  Ka8 {[%clk 0:00:06]} 82. Kd7 {[%clk 0:00:07]}  Ka7 {[%clk 0:00:06]} 83. Qf2+ {[%clk 0:00:08]}  Ka8 {[%clk 0:00:06]} 84. Qf8+ {[%clk 0:00:08]}  Ka7 {[%clk 0:00:07]} 85. Qc5+ {[%clk 0:00:09]}  Ka8 {[%clk 0:00:07]} 86. Qf8+ {[%clk 0:00:10]} 1/2-1/2


[Site "https://www.chess.com"]

[Event "Titled Tuesday Blitz March 28 Late 2023"]
[White "Karwowski, Kacper"]
[Black "Durarbayli, Vasif"]
[WhiteFideId "1126032"]
[BlackFideId "13402935"]
[WhiteElo "2261"]
[BlackElo "2543"]
[Result "0-1"]
[Round "01"]
[TimeControl "180+2"]
[Date "2023.03.28"]
[WhiteClock "0:00:01"]
[BlackClock "0:00:08"]

1. e4 {[%clk 0:02:53]}  c5 {[%clk 0:02:58]} 2. Nf3 {[%clk 0:02:52]}  d6 {[%clk 0:02:57]} 3. c3 {[%clk 0:02:52]}  Nf6 {[%clk 0:02:57]} 4. h3 {[%clk 0:02:52]}  g6 {[%clk 0:02:57]} 5. Bd3 {[%clk 0:02:52]}  Bg7 {[%clk 0:02:58]} 6. Bc2 {[%clk 0:02:52]}  O-O {[%clk 0:02:58]} 7. d4 {[%clk 0:02:53]}  Nc6 {[%clk 0:02:55]} 8. O-O {[%clk 0:02:53]}  Nd7 {[%clk 0:02:53]} 9. Re1 {[%clk 0:02:50]}  b5 {[%clk 0:02:52]} 10. a4 {[%clk 0:02:40]}  bxa4 {[%clk 0:02:44]} 11. Bxa4 {[%clk 0:02:34]}  Qc7 {[%clk 0:02:40]} 12. Na3 {[%clk 0:02:31]}  Ba6 {[%clk 0:02:34]} 13. Bg5 {[%clk 0:02:19]}  Rfe8 {[%clk 0:02:24]} 14. d5 {[%clk 0:02:05]}  Nce5 {[%clk 0:02:20]} 15. Nxe5 {[%clk 0:02:04]}  Bxe5 {[%clk 0:02:21]} 16. f4 {[%clk 0:02:04]}  Bg7 {[%clk 0:02:21]} 17. Nc2 {[%clk 0:01:41]}  Bc8 {[%clk 0:02:16]} 18. Qd3 {[%clk 0:01:37]}  Rb8 {[%clk 0:02:16]} 19. Reb1 {[%clk 0:01:34]}  Kf8 {[%clk 0:01:51]} 20. Ra3 {[%clk 0:01:31]}  c4 {[%clk 0:01:45]} 21. Qf1 {[%clk 0:01:22]}  Qc5+ {[%clk 0:01:45]} 22. Kh2 {[%clk 0:01:19]}  Rd8 {[%clk 0:01:44]} 23. Bh4 {[%clk 0:01:16]}  Nb6 {[%clk 0:01:28]} 24. Bf2 {[%clk 0:01:14]}  Qc7 {[%clk 0:01:28]} 25. Bc6 {[%clk 0:01:14]}  e5 {[%clk 0:01:25]} 26. f5 {[%clk 0:01:04]}  gxf5 {[%clk 0:01:24]} 27. exf5 {[%clk 0:01:04]}  Qe7 {[%clk 0:01:17]} 28. g4 {[%clk 0:00:58]}  a6 {[%clk 0:01:12]} 29. Bxb6 {[%clk 0:00:55]}  Rxb6 {[%clk 0:01:12]} 30. Qxc4 {[%clk 0:00:55]}  h5 {[%clk 0:00:57]} 31. Ne3 {[%clk 0:00:55]}  Qg5 {[%clk 0:00:55]} 32. Qe4 {[%clk 0:00:37]}  Bh6 {[%clk 0:00:55]} 33. c4 {[%clk 0:00:34]}  Qh4 {[%clk 0:00:48]} 34. Ng2 {[%clk 0:00:27]}  Qf2 {[%clk 0:00:48]} 35. Rf3 {[%clk 0:00:18]}  Qd2 {[%clk 0:00:48]} 36. Kh1 {[%clk 0:00:08]}  Rxb2 {[%clk 0:00:35]} 37. Rxb2 {[%clk 0:00:09]}  Qxb2 {[%clk 0:00:36]} 38. f6 {[%clk 0:00:10]}  Qc1+ {[%clk 0:00:35]} 39. Kh2 {[%clk 0:00:10]}  Kg8 {[%clk 0:00:24]} 40. gxh5 {[%clk 0:00:10]}  Kh8 {[%clk 0:00:22]} 41. Rg3 {[%clk 0:00:10]}  a5 {[%clk 0:00:15]} 42. c5 {[%clk 0:00:06]}  Qxc5 {[%clk 0:00:12]} 43. Nh4 {[%clk 0:00:02]}  Qf2+ {[%clk 0:00:11]} 44. Rg2 {[%clk 0:00:02]}  Bf4+ {[%clk 0:00:07]} 45. Kh1 {[%clk 0:00:02]}  Qf1+ {[%clk 0:00:07]} 46. Rg1 {[%clk 0:00:01]}  Qxh3# {[%clk 0:00:08]} 0-1


[Site "https://www.chess.com"]

[Event "Titled Tuesday Blitz March 28 Late 2023"]
[White "Khandelwal, Ankush"]
[Black "Deac, Bogdan-Daniel"]
[WhiteFideId "413470"]
[BlackFideId "1226380"]
[WhiteElo "2263"]
[BlackElo "2649"]
[Result "0-1"]
[Round "01"]
[TimeControl "180+2"]
[Date "2023.03.28"]
[WhiteClock "0:00:11"]
[BlackClock "0:00:05"]

1. e4 {[%clk 0:03:00]}  g6 {[%clk 0:03:00]} 2. d4 {[%clk 0:03:00]}  Bg7 {[%clk 0:03:00]} 3. Nc3 {[%clk 0:02:56]}  c6 {[%clk 0:03:00]} 4. Nf3 {[%clk 0:02:53]}  d6 {[%clk 0:03:00]} 5. Be3 {[%clk 0:02:50]}  b5 {[%clk 0:02:59]} 6. Bd3 {[%clk 0:02:47]}  a6 {[%clk 0:02:57]} 7. Qd2 {[%clk 0:02:44]}  Bb7 {[%clk 0:02:50]} 8. h4 {[%clk 0:02:31]}  h5 {[%clk 0:02:49]} 9. a4 {[%clk 0:02:25]}  Nd7 {[%clk 0:02:47]} 10. Ng5 {[%clk 0:02:17]}  Ngf6 {[%clk 0:02:45]} 11. f3 {[%clk 0:02:12]}  e5 {[%clk 0:02:37]} 12. d5 {[%clk 0:02:06]}  cxd5 {[%clk 0:02:06]} 13. Nxd5 {[%clk 0:02:02]}  Nxd5 {[%clk 0:01:57]} 14. exd5 {[%clk 0:02:03]}  O-O {[%clk 0:01:57]} 15. O-O {[%clk 0:01:55]}  Nb6 {[%clk 0:01:48]} 16. axb5 {[%clk 0:01:53]}  axb5 {[%clk 0:01:49]} 17. Rxa8 {[%clk 0:01:44]}  Bxa8 {[%clk 0:01:49]} 18. Bxg6 {[%clk 0:01:22]}  fxg6 {[%clk 0:01:28]} 19. Ne6 {[%clk 0:01:22]}  Qb8 {[%clk 0:01:21]} 20. Bh6 {[%clk 0:01:12]}  Rf7 {[%clk 0:00:41]} 21. Bxg7 {[%clk 0:01:11]}  Rxg7 {[%clk 0:00:42]} 22. Qh6 {[%clk 0:01:11]}  Qa7 {[%clk 0:00:31]} 23. Kh2 {[%clk 0:01:04]}  Bxd5 {[%clk 0:00:22]} 24. Ra1 {[%clk 0:01:04]}  Na4 {[%clk 0:00:21]} 25. Nxg7 {[%clk 0:00:40]}  Qxg7 {[%clk 0:00:22]} 26. Qd2 {[%clk 0:00:40]}  Qf7 {[%clk 0:00:18]} 27. b3 {[%clk 0:00:40]}  Nc5 {[%clk 0:00:16]} 28. Rd1 {[%clk 0:00:40]}  Be6 {[%clk 0:00:13]} 29. Qxd6 {[%clk 0:00:40]}  Nd7 {[%clk 0:00:14]} 30. Ra1 {[%clk 0:00:38]}  Qf4+ {[%clk 0:00:10]} 31. g3 {[%clk 0:00:34]}  Qf6 {[%clk 0:00:08]} 32. Ra7 {[%clk 0:00:27]}  Nf8 {[%clk 0:00:07]} 33. Rb7 {[%clk 0:00:25]}  e4 {[%clk 0:00:07]} 34. f4 {[%clk 0:00:17]}  e3 {[%clk 0:00:06]} 35. Qd3 {[%clk 0:00:16]}  Qf5 {[%clk 0:00:05]} 36. Qxe3 {[%clk 0:00:16]}  Qxc2+ {[%clk 0:00:05]} 37. Kg1 {[%clk 0:00:14]}  Bd5 {[%clk 0:00:05]} 38. Qf2 {[%clk 0:00:10]}  Qxf2+ {[%clk 0:00:05]} 39. Kxf2 {[%clk 0:00:11]}  Bxb7 {[%clk 0:00:05]} 0-1


[Site "https://www.chess.com"]

[Event "Titled Tuesday Blitz March 28 Late 2023"]
[White "Mackster23"]
[Black "Tari, Aryan"]
[BlackFideId "1510045"]
[WhiteElo "2460"]
[BlackElo "2583"]
[Result "1-0"]
[Round "01"]
[TimeControl "180+2"]
[Date "2023.03.28"]
[WhiteClock "0:00:09"]
[BlackClock "0:00:05"]

1. e4 {[%clk 0:02:58]}  c6 {[%clk 0:02:52]} 2. d4 {[%clk 0:02:57]}  d5 {[%clk 0:02:53]} 3. Nd2 {[%clk 0:02:57]}  dxe4 {[%clk 0:02:46]} 4. Nxe4 {[%clk 0:02:58]}  Nf6 {[%clk 0:02:46]} 5. Nxf6+ {[%clk 0:02:59]}  exf6 {[%clk 0:02:47]} 6. c3 {[%clk 0:02:59]}  Bd6 {[%clk 0:02:47]} 7. Bd3 {[%clk 0:03:00]}  O-O {[%clk 0:02:48]} 8. Qc2 {[%clk 0:03:00]}  Re8+ {[%clk 0:02:48]} 9. Ne2 {[%clk 0:03:00]}  h5 {[%clk 0:02:48]} 10. O-O {[%clk 0:03:01]}  h4 {[%clk 0:02:47]} 11. Bd2 {[%clk 0:03:00]}  Nd7 {[%clk 0:02:47]} 12. Rae1 {[%clk 0:02:56]}  Nf8 {[%clk 0:02:47]} 13. Nf4 {[%clk 0:02:49]}  Ne6 {[%clk 0:02:29]} 14. Nxe6 {[%clk 0:02:07]}  Bxe6 {[%clk 0:02:30]} 15. Bh7+ {[%clk 0:02:01]}  Kh8 {[%clk 0:02:05]} 16. Bf5 {[%clk 0:02:00]}  Qd7 {[%clk 0:01:50]} 17. Bxe6 {[%clk 0:01:51]}  Rxe6 {[%clk 0:01:51]} 18. Qf5 {[%clk 0:01:51]}  Kg8 {[%clk 0:01:49]} 19. Qg4 {[%clk 0:01:46]}  Rae8 {[%clk 0:01:47]} 20. b3 {[%clk 0:01:27]}  Qe7 {[%clk 0:01:30]} 21. Rxe6 {[%clk 0:01:17]}  Qxe6 {[%clk 0:01:31]} 22. Qxh4 {[%clk 0:01:05]}  Qe2 {[%clk 0:01:29]} 23. Be3 {[%clk 0:00:41]}  Qxa2 {[%clk 0:01:22]} 24. b4 {[%clk 0:00:42]}  Qb2 {[%clk 0:01:14]} 25. Qg4 {[%clk 0:00:39]}  Re6 {[%clk 0:01:10]} 26. d5 {[%clk 0:00:32]}  cxd5 {[%clk 0:01:09]} 27. Qd4 {[%clk 0:00:33]}  a6 {[%clk 0:01:06]} 28. Qxd5 {[%clk 0:00:32]}  Qxc3 {[%clk 0:01:05]} 29. Qxb7 {[%clk 0:00:31]}  Qxb4 {[%clk 0:01:04]} 30. Qa8+ {[%clk 0:00:30]}  Kh7 {[%clk 0:01:03]} 31. Rd1 {[%clk 0:00:30]}  Qg4 {[%clk 0:00:55]} 32. Qd5 {[%clk 0:00:28]}  Be5 {[%clk 0:00:51]} 33. Qd3+ {[%clk 0:00:23]}  g6 {[%clk 0:00:49]} 34. Qd7 {[%clk 0:00:20]}  Kg7 {[%clk 0:00:46]} 35. g3 {[%clk 0:00:18]}  Qf3 {[%clk 0:00:43]} 36. Rb1 {[%clk 0:00:18]}  Rc6 {[%clk 0:00:40]} 37. Rb7 {[%clk 0:00:16]}  Bc7 {[%clk 0:00:11]} 38. Rxc7 {[%clk 0:00:16]}  Rxc7 {[%clk 0:00:12]} 39. Qxc7 {[%clk 0:00:17]}  Qd1+ {[%clk 0:00:12]} 40. Kg2 {[%clk 0:00:17]}  Qd5+ {[%clk 0:00:13]} 41. f3 {[%clk 0:00:17]}  Qa2+ {[%clk 0:00:13]} 42. Kh3 {[%clk 0:00:17]}  Qe2 {[%clk 0:00:12]} 43. Bc5 {[%clk 0:00:12]}  Qxf3 {[%clk 0:00:10]} 44. Qf4 {[%clk 0:00:12]}  Qd5 {[%clk 0:00:08]} 45. Bd4 {[%clk 0:00:11]}  Qe6+ {[%clk 0:00:08]} 46. g4 {[%clk 0:00:10]}  a5 {[%clk 0:00:09]} 47. Kg3 {[%clk 0:00:10]}  Qb3+ {[%clk 0:00:08]} 48. Qf3 {[%clk 0:00:10]}  Qb8+ {[%clk 0:00:07]} 49. Kh3 {[%clk 0:00:10]}  Qd6 {[%clk 0:00:08]} 50. Bc3 {[%clk 0:00:09]}  Qe6 {[%clk 0:00:07]} 51. Kg3 {[%clk 0:00:08]}  Qd6+ {[%clk 0:00:07]} 52. Kg2 {[%clk 0:00:09]}  g5 {[%clk 0:00:06]} 53. h4 {[%clk 0:00:09]}  gxh4 {[%clk 0:00:06]} 54. g5 {[%clk 0:00:10]}  Qc5 {[%clk 0:00:05]} 55. Qxf6+ {[%clk 0:00:09]}  Kg8 {[%clk 0:00:05]} 56. Qg7# {[%clk 0:00:09]} 1-0


[Site "https://www.chess.com"]

[Event "Titled Tuesday Blitz March 28 Late 2023"]
[White "Baskakov, Egor"]
[Black "Kokoszczynski, Jan"]
[WhiteFideId "24197866"]
[BlackFideId "1174460"]
[WhiteElo "2212"]
[BlackElo "2139"]
[Result "1-0"]
[Round "01"]
[TimeControl "180+2"]
[Date "2023.03.28"]
[WhiteClock "0:00:45"]
[BlackClock "0:00:06"]

1. e4 {[%clk 0:03:00]}  c5 {[%clk 0:02:59]} 2. Nf3 {[%clk 0:03:00]}  Nc6 {[%clk 0:02:59]} 3. Nc3 {[%clk 0:03:00]}  g6 {[%clk 0:02:57]} 4. d4 {[%clk 0:03:00]}  cxd4 {[%clk 0:02:57]} 5. Nxd4 {[%clk 0:03:00]}  Bg7 {[%clk 0:02:58]} 6. Nde2 {[%clk 0:03:01]}  Nf6 {[%clk 0:02:57]} 7. g3 {[%clk 0:03:01]}  O-O {[%clk 0:02:58]} 8. Bg2 {[%clk 0:03:02]}  d6 {[%clk 0:02:58]} 9. O-O {[%clk 0:03:02]}  Bd7 {[%clk 0:02:53]} 10. h3 {[%clk 0:03:01]}  Rc8 {[%clk 0:02:53]} 11. a4 {[%clk 0:03:01]}  a6 {[%clk 0:02:43]} 12. Be3 {[%clk 0:03:01]}  Rb8 {[%clk 0:02:36]} 13. Nd5 {[%clk 0:02:58]}  b5 {[%clk 0:02:28]} 14. axb5 {[%clk 0:02:58]}  axb5 {[%clk 0:02:29]} 15. b3 {[%clk 0:02:58]}  e6 {[%clk 0:02:20]} 16. Nxf6+ {[%clk 0:02:57]}  Bxf6 {[%clk 0:02:20]} 17. Nd4 {[%clk 0:02:55]}  Qc7 {[%clk 0:01:41]} 18. Nxc6 {[%clk 0:02:45]}  Bxc6 {[%clk 0:01:30]} 19. Ra6 {[%clk 0:02:44]}  Rfd8 {[%clk 0:01:22]} 20. Rxc6 {[%clk 0:02:38]}  Qxc6 {[%clk 0:01:14]} 21. e5 {[%clk 0:02:39]}  d5 {[%clk 0:01:14]} 22. exf6 {[%clk 0:02:39]}  e5 {[%clk 0:01:15]} 23. Bg5 {[%clk 0:02:20]}  h6 {[%clk 0:01:15]} 24. Bxh6 {[%clk 0:02:13]}  Qxf6 {[%clk 0:01:15]} 25. Qd2 {[%clk 0:02:13]}  Qe6 {[%clk 0:01:11]} 26. c3 {[%clk 0:02:08]}  b4 {[%clk 0:01:04]} 27. cxb4 {[%clk 0:01:45]}  d4 {[%clk 0:00:36]} 28. Be4 {[%clk 0:01:39]}  Qxb3 {[%clk 0:00:31]} 29. Bg5 {[%clk 0:01:36]}  Rdc8 {[%clk 0:00:23]} 30. Be7 {[%clk 0:01:15]}  Qe6 {[%clk 0:00:20]} 31. Bc5 {[%clk 0:01:16]}  Rd8 {[%clk 0:00:16]} 32. Qg5 {[%clk 0:01:12]}  f5 {[%clk 0:00:14]} 33. Bc2 {[%clk 0:01:10]}  Kg7 {[%clk 0:00:10]} 34. Re1 {[%clk 0:01:09]}  d3 {[%clk 0:00:09]} 35. Bd1 {[%clk 0:01:08]}  e4 {[%clk 0:00:09]} 36. h4 {[%clk 0:01:07]}  Qf6 {[%clk 0:00:08]} 37. Qf4 {[%clk 0:01:06]}  Rb7 {[%clk 0:00:08]} 38. Bb3 {[%clk 0:01:02]}  d2 {[%clk 0:00:07]} 39. Rd1 {[%clk 0:00:57]}  Rbd7 {[%clk 0:00:08]} 40. Ba4 {[%clk 0:00:55]}  Rd3 {[%clk 0:00:08]} 41. Be3 {[%clk 0:00:50]}  R3d5 {[%clk 0:00:07]} 42. Qh6+ {[%clk 0:00:47]}  Kg8 {[%clk 0:00:07]} 43. Bb3 {[%clk 0:00:47]}  Qg7 {[%clk 0:00:06]} 44. Rxd2 {[%clk 0:00:45]} 1-0


[Site "https://www.chess.com"]

[Event "Titled Tuesday Blitz March 28 Late 2023"]
[White "Haszon, David"]
[Black "Terry, Renato"]
[WhiteFideId "733610"]
[BlackFideId "3803457"]
[WhiteElo "2210"]
[BlackElo "2579"]
[Result "0-1"]
[Round "01"]
[TimeControl "180+2"]
[Date "2023.03.28"]
[WhiteClock "0:02:16"]
[BlackClock "0:02:41"]

1. d4 {[%clk 0:02:58]}  e6 {[%clk 0:02:59]} 2. Bf4 {[%clk 0:02:57]}  Nf6 {[%clk 0:02:58]} 3. e3 {[%clk 0:02:56]}  Bd6 {[%clk 0:02:56]} 4. Bxd6 {[%clk 0:02:52]}  cxd6 {[%clk 0:02:57]} 5. c4 {[%clk 0:02:52]}  d5 {[%clk 0:02:55]} 6. Nc3 {[%clk 0:02:52]}  dxc4 {[%clk 0:02:55]} 7. Bxc4 {[%clk 0:02:53]}  b6 {[%clk 0:02:52]} 8. Qf3 {[%clk 0:02:53]}  Nc6 {[%clk 0:02:52]} 9. Nb5 {[%clk 0:02:44]}  O-O {[%clk 0:02:42]} 10. Nd6 {[%clk 0:02:41]}  Qe7 {[%clk 0:02:42]} 11. Nxc8 {[%clk 0:02:16]}  Qb4+ {[%clk 0:02:42]} 12. Kd1 {[%clk 0:02:17]}  Qxc4 {[%clk 0:02:42]} 13. Nd6 {[%clk 0:02:16]}  Qf1+ {[%clk 0:02:41]} 0-1


[Site "https://www.chess.com"]

[Event "Titled Tuesday Blitz March 28 Late 2023"]
[White "Bachmann, Axel"]
[Black "Liu, Casper"]
[WhiteFideId "3700488"]
[BlackFideId "1454153"]
[WhiteElo "2605"]
[BlackElo "2221"]
[Result "1-0"]
[Round "01"]
[TimeControl "180+2"]
[Date "2023.03.28"]
[WhiteClock "0:00:17"]
[BlackClock "0:00:04"]

1. Nf3 {[%clk 0:03:00]}  Nc6 {[%clk 0:02:58]} 2. e4 {[%clk 0:02:59]}  d6 {[%clk 0:02:58]} 3. d4 {[%clk 0:02:59]}  Bg4 {[%clk 0:02:58]} 4. d5 {[%clk 0:02:58]}  Bxf3 {[%clk 0:02:50]} 5. Qxf3 {[%clk 0:02:59]}  Ne5 {[%clk 0:02:50]} 6. Qd1 {[%clk 0:02:54]}  g6 {[%clk 0:02:49]} 7. Nc3 {[%clk 0:02:51]}  Bg7 {[%clk 0:02:49]} 8. Be3 {[%clk 0:02:44]}  Nf6 {[%clk 0:02:49]} 9. h3 {[%clk 0:02:41]}  O-O {[%clk 0:02:50]} 10. Be2 {[%clk 0:02:39]}  e6 {[%clk 0:02:50]} 11. dxe6 {[%clk 0:02:37]}  fxe6 {[%clk 0:02:49]} 12. O-O {[%clk 0:02:35]}  a6 {[%clk 0:02:50]} 13. f4 {[%clk 0:02:29]}  Nc6 {[%clk 0:02:46]} 14. Bf3 {[%clk 0:02:23]}  Kh8 {[%clk 0:02:45]} 15. Qd2 {[%clk 0:02:20]}  e5 {[%clk 0:02:45]} 16. f5 {[%clk 0:02:18]}  Ne7 {[%clk 0:02:43]} 17. g4 {[%clk 0:02:06]}  d5 {[%clk 0:02:34]} 18. Bc5 {[%clk 0:01:57]}  d4 {[%clk 0:02:09]} 19. Ne2 {[%clk 0:01:55]}  gxf5 {[%clk 0:02:01]} 20. exf5 {[%clk 0:01:50]}  Nd7 {[%clk 0:01:23]} 21. Bxe7 {[%clk 0:01:45]}  Qxe7 {[%clk 0:01:24]} 22. Ng3 {[%clk 0:01:43]}  Qh4 {[%clk 0:01:17]} 23. Kg2 {[%clk 0:01:41]}  Bh6 {[%clk 0:01:17]} 24. Qe1 {[%clk 0:01:40]}  Be3 {[%clk 0:01:12]} 25. Ne4 {[%clk 0:01:38]}  Qh6 {[%clk 0:01:01]} 26. Qa5 {[%clk 0:01:09]}  Qc6 {[%clk 0:00:34]} 27. c3 {[%clk 0:01:01]}  Rg8 {[%clk 0:00:15]} 28. Qa3 {[%clk 0:00:59]}  Rg7 {[%clk 0:00:10]} 29. Ng5 {[%clk 0:00:47]}  Qf6 {[%clk 0:00:10]} 30. Ne6 {[%clk 0:00:46]}  Rf7 {[%clk 0:00:07]} 31. Rae1 {[%clk 0:00:44]}  Rg8 {[%clk 0:00:06]} 32. cxd4 {[%clk 0:00:39]}  exd4 {[%clk 0:00:04]} 33. Rxe3 {[%clk 0:00:39]}  dxe3 {[%clk 0:00:04]} 34. Qxe3 {[%clk 0:00:40]}  Qxf5 {[%clk 0:00:04]} 35. Kh1 {[%clk 0:00:25]}  Qe5 {[%clk 0:00:04]} 36. Qb3 {[%clk 0:00:24]}  Re8 {[%clk 0:00:04]} 37. Ng5 {[%clk 0:00:20]}  Rfe7 {[%clk 0:00:03]} 38. Nf7+ {[%clk 0:00:20]}  Rxf7 {[%clk 0:00:04]} 39. Qxf7 {[%clk 0:00:21]}  Rf8 {[%clk 0:00:01]} 40. Qxd7 {[%clk 0:00:20]}  Qg3 {[%clk 0:00:02]} 41. Qd4+ {[%clk 0:00:19]}  Kg8 {[%clk 0:00:02]} 42. Bd5+ {[%clk 0:00:20]}  Rf7 {[%clk 0:00:02]} 43. Bxf7+ {[%clk 0:00:19]}  Kf8 {[%clk 0:00:03]} 44. Bd5+ {[%clk 0:00:18]}  Ke8 {[%clk 0:00:03]} 45. Qh8+ {[%clk 0:00:18]}  Kd7 {[%clk 0:00:03]} 46. Qxh7+ {[%clk 0:00:17]}  Kd6 {[%clk 0:00:04]} 47. Bg2 {[%clk 0:00:17]} 1-0


[Site "https://www.chess.com"]

[Event "Titled Tuesday Blitz March 28 Late 2023"]
[White "Minko, Dmitry"]
[Black "Ibarra Jerez, Jose Carlos"]
[WhiteFideId "24188468"]
[BlackFideId "2226332"]
[WhiteElo "2147"]
[BlackElo "2638"]
[Result "0-1"]
[Round "01"]
[TimeControl "180+2"]
[Date "2023.03.28"]
[WhiteClock "0:00:13"]
[BlackClock "0:00:56"]

1. e4 {[%clk 0:02:59]}  c5 {[%clk 0:02:57]} 2. Nf3 {[%clk 0:02:59]}  e6 {[%clk 0:02:53]} 3. d4 {[%clk 0:02:59]}  cxd4 {[%clk 0:02:53]} 4. Nxd4 {[%clk 0:03:00]}  Bc5 {[%clk 0:02:54]} 5. Nb3 {[%clk 0:02:58]}  Bb6 {[%clk 0:02:53]} 6. Nc3 {[%clk 0:02:50]}  Ne7 {[%clk 0:02:53]} 7. Bf4 {[%clk 0:02:40]}  d5 {[%clk 0:02:51]} 8. exd5 {[%clk 0:02:37]}  exd5 {[%clk 0:02:48]} 9. Bb5+ {[%clk 0:02:36]}  Nbc6 {[%clk 0:02:47]} 10. O-O {[%clk 0:02:36]}  O-O {[%clk 0:02:47]} 11. Ne2 {[%clk 0:02:15]}  Nf5 {[%clk 0:02:35]} 12. Ng3 {[%clk 0:02:04]}  Nh4 {[%clk 0:02:26]} 13. Qh5 {[%clk 0:01:56]}  Ng6 {[%clk 0:02:21]} 14. Bg5 {[%clk 0:01:51]}  f6 {[%clk 0:02:08]} 15. Bd2 {[%clk 0:01:51]}  Be6 {[%clk 0:02:03]} 16. Rae1 {[%clk 0:01:46]}  Bf7 {[%clk 0:02:03]} 17. Kh1 {[%clk 0:01:40]}  Nge5 {[%clk 0:01:54]} 18. Qd1 {[%clk 0:01:40]}  a6 {[%clk 0:01:48]} 19. Be2 {[%clk 0:01:35]}  Re8 {[%clk 0:01:41]} 20. Bh5 {[%clk 0:01:01]}  g6 {[%clk 0:01:41]} 21. f4 {[%clk 0:01:01]}  Nc4 {[%clk 0:01:37]} 22. Bf3 {[%clk 0:01:01]}  Rxe1 {[%clk 0:01:30]} 23. Rxe1 {[%clk 0:01:01]}  Nxb2 {[%clk 0:01:29]} 24. Qa1 {[%clk 0:01:01]}  Nc4 {[%clk 0:01:27]} 25. Bc3 {[%clk 0:01:01]}  Kg7 {[%clk 0:01:18]} 26. f5 {[%clk 0:00:55]}  N6e5 {[%clk 0:01:12]} 27. fxg6 {[%clk 0:00:49]}  hxg6 {[%clk 0:01:12]} 28. Nd4 {[%clk 0:00:44]}  Qd7 {[%clk 0:01:11]} 29. Bd1 {[%clk 0:00:36]}  Rh8 {[%clk 0:01:08]} 30. h3 {[%clk 0:00:26]}  Rxh3+ {[%clk 0:00:57]} 31. gxh3 {[%clk 0:00:27]}  Qxh3+ {[%clk 0:00:57]} 32. Kg1 {[%clk 0:00:28]}  Qxg3+ {[%clk 0:00:57]} 33. Kh1 {[%clk 0:00:15]}  Bxd4 {[%clk 0:00:56]} 34. Bxd4 {[%clk 0:00:13]}  Qxe1+ {[%clk 0:00:56]} 0-1


[Site "https://www.chess.com"]